Cogmind - Beta 13 --- EXPLORER MODE // 2024.04.02 @ 21:51:18 Player: Rat Bastard Result: Destroyed by G-50 Soldier with Heavy Laser Performance ------------- Evolutions (4) 2000 Regions Visited (8) 1600 Robots Destroyed (122) 610 Value Destroyed (4466) 4466 Prototype IDs (5) 100 Alien Tech Used (0) 0 Bonus (999) 999 TOTAL SCORE: 9775 Bonus ------- High Alert Combat Kills 24 Follower Combat Kills 699 Aligned with FarCom 300 Friendly Fire -24 Cogmind --------- Core Integrity 0/850 Matter 290/300 Energy 83/100 System Corruption 4% Temperature Cool (9) Movement Core (50) Location -6/Extension Parts ------- > --- POWER (3) -------- (None) > --- PROPULSION (4) --- (None) > --- UTILITY (7) ------ Modified TNC Hacking Suite Improved Hacking Suite > --- WEAPON (2) ------- (None) > --- INVENTORY (5) ---- Improved Deuterium Engine Light Angular Momentum Engine Heavy Plasma Cannon Heavy Rocket Launcher Heavy Rocket Launcher Peak State ------------ > --- POWER ------------ Enhanced Nuclear Core Micro Nuclear Core Micro Nuclear Core > --- PROPULSION ------- Armored Treads Armored Treads Armored Treads Medium Treads > --- UTILITY ---------- Large Storage Unit Improved Sensor Array Modified TNC Advanced ECM Suite Hacking Suite Hacking Suite Improved Hacking Suite > --- WEAPON ----------- Cooled Particle Cannon Coil Gun > --- INVENTORY -------- Light Fission Core Fusion Compressor VTOL Module Improved VTOL Module Nuclear Pulse Thruster Weight Redist. System Advanced Visual Processing Unit Advanced Terrain Scan Processor Improved Light Armor Plating Shock Absorption System Gatling Laser Heavy Plasma Cannon Minigun Heavy Rocket Launcher Heavy Rocket Launcher [Rating: 66] Favorites ----------- Power Micro Nuclear Core Engine Improved Ion Engine Power Core Micro Nuclear Core Propulsion Armored Treads Treads Armored Treads Leg VSS Leg Wheel Wheel Flight Unit Improved VTOL Module Utility Hacking Suite Device Improved Heat Sink Storage Large Storage Unit Processor Modified TNC Hackware Hacking Suite Protection Light Armor Plating Weapon Gatling Laser Energy Gun Gatling Laser Energy Cannon Beam Cannon Ballistic Gun Coil Gun Launcher Mini Grenade Launcher Special Melee Weapon Improved Datajack Build | -11 -10 -10 -10 -9 -8 -7 -6 -6 ------- Run | Yrd Mat Min Exi Min Mat Fac Fac Ext Slots Evolved 9 | . 1 . . . 4 2 2 . Power 2 | . . . . . 1 . 1 . Propulsion 2 | . 1 . . . 1 . . . Utility 5 | . . . . . 2 2 1 . Weapon . | . . . . . . . . . Parts Attached 123 | 8 18 . 3 3 22 40 19 10 Power 20 | 1 2 . . . 3 9 4 1 Engine 12 | 1 2 . . . 1 6 1 1 Core 8 | . . . . . 2 3 3 . Reactor . | . . . . . . . . . Propulsion 35 | 2 10 . . 1 10 5 5 2 Treads 12 | . 7 . . . 1 3 1 . Leg 6 | . . . . . 4 1 . 1 Wheel 11 | 2 3 . . 1 5 . . . Hover . | . . . . . . . . . Flight 6 | . . . . . . 1 4 1 Utility 28 | 3 1 . . . 4 12 6 2 Device 18 | 2 . . . . 1 9 4 2 Storage 2 | . 1 . . . 1 . . . Processor 2 | 1 . . . . 1 . . . Hackware 3 | . . . . . . 2 1 . Protection 3 | . . . . . 1 1 1 . Artifact . | . . . . . . . . . Weapon 40 | 2 5 . 3 2 5 14 4 5 Energy Gun 13 | 1 3 . . 1 2 6 . . Energy Cannon 7 | . . . 3 1 1 . 1 1 Ballistic Gun 11 | 1 . . . . . 3 3 4 Ballistic Cannon . | . . . . . . . . . Launcher 8 | . 2 . . . 2 4 . . Special Weapon . | . . . . . . . . . Impact Weapon . | . . . . . . . . . Slashing Weapon . | . . . . . . . . . Piercing Weapon . | . . . . . . . . . Special Melee Weapon 1 | . . . . . . 1 . . Unidentified Prototypes 5 | . . . . . 1 3 1 . Parts Lost 22 | . . . . . 4 6 3 9 Power 7 | . . . . . 2 3 1 1 Propulsion 8 | . . . . . 2 1 . 5 Utility 6 | . . . . . . 1 2 3 Weapon 1 | . . . . . . 1 . . Highest Loss Streak 5 | . . . . . 1 2 3 5 To Critical Strikes . | . . . . . . . . . Average Slot Usage (%) 93 | . 83 100 100 90 91 96 99 64 Engine 7 | . 11 12 12 12 8 8 3 . Core 6 | . . . . . 7 5 14 8 Treads 10 | . 16 . . . . 6 24 . Leg 6 | . . . . . 10 18 . . Wheel 7 | . 4 37 37 29 14 . . . Flight 1 | . . . . . . . . 15 Device 9 | . 2 . . . 8 14 14 11 Storage 7 | . 9 12 12 12 8 7 5 . Processor 8 | . 12 12 12 12 12 7 6 6 Hackware 8 | . . . . . . 12 14 16 Energy Gun 8 | . 23 25 . 7 9 11 4 . Energy Cannon 5 | . . . 24 16 4 . 4 . Ballistic Gun 1 | . . . . . . . 3 4 Naked Turns . | . . . . . . . . . Heaviest Build 60 | 7 29 29 31 32 46 55 60 25 Greatest Support 88 | 20 60 30 30 38 48 60 88 27 Greatest Overweight (x) 13 | . 9 . 1 1 3 13 . 1 Average Overweight (x) . | . 1 . . . . . . . Largest Inventory Capacity 15 | 5 15 15 15 15 15 15 15 5 Average Capacity 14 | 5 13 15 15 15 15 15 14 5 Most Carried 15 | 5 15 15 15 15 15 15 15 5 Average Carried 13 | 1 12 15 14 14 14 14 14 4 Final Capacity 15 | 5 15 15 15 15 15 15 5 5 Final Carried 15 | 4 15 15 15 15 15 15 5 5 Class Distribution -------------------- 77% | Hacker-Mutant 14% | Hacker-Skirmisher 3% | Hacker-Sprinter Dominant Class ---------------- Hacker-Mutant | -10/Materials Scavenger-Mutant | -10/Mines Hacker-Mutant | -10/Exiles Hacker-Mutant | -9/Mines Hacker-Mutant | -8/Materials Hacker-Mutant | -7/Factory Hacker-Mutant | -6/Factory Hacker-Sprinter | -6/Extension Resources | -11 -10 -10 -10 -9 -8 -7 -6 -6 ----------- Run | Yrd Mat Min Exi Min Mat Fac Fac Ext Matter Collected 2271 | 254 238 . . 208 338 659 338 236 Remotely . | . . . . . . . . . Salvage Created 4468 | 46 469 . . 103 1032 1545 973 300 Parts 239 | 3 30 . . 7 58 70 53 18 Haulers Intercepted . | . . . . . . . . . Recyclers Shooed 5 | . . . . . 1 1 3 . Parts Field Recycled . | . . . . . . . . . Retrieved Matter . | . . . . . . . . . Parts Self-Destructed . | . . . . . . . . . Prevented . | . . . . . . . . . Kills | -11 -10 -10 -10 -9 -8 -7 -6 -6 ------- Run | Yrd Mat Min Exi Min Mat Fac Fac Ext Combat Hostiles Destroyed 91 | 1 8 . . 6 23 28 19 6 Guns 64 | 1 6 . . 6 15 19 11 6 Cannons 13 | . . . . . 5 1 7 . AOE 13 | . 2 . . . 3 8 . . Classes Destroyed 12 | 1 5 . . . 2 2 2 . Worker 10 | . 2 . . . 1 5 2 . Builder 3 | . 1 . . . . 2 . . Recycler 5 | . 1 . . . . 4 . . Operator 3 | . . . . . . 2 . 1 Watcher 13 | . 2 . . . 4 2 3 2 Swarmer 18 | . 2 . . 5 2 3 2 4 Grunt 36 | 1 6 . . 1 12 10 6 . Sentry 18 | . . . . . 7 8 1 2 Demolisher 2 | . . . . . . . 2 . Hunter 3 | . . . . . 2 1 . . Programmer 11 | . . . . . . 6 5 . Assembled 3 | . . . . . . . 3 . Best Kill Streak 8 | 1 3 . . 3 8 6 6 3 Combat Bots Only 6 | 1 2 . . 3 4 5 6 3 Max Kills in Single Turn 3 | 1 2 . . 1 2 3 2 1 Gunslinging . | . . . . . . . . . Exploded 3 | . 2 . . . 2 3 . . Melee . | . . . . . . . . . Uniques/NPCs Destroyed . | . . . . . . . . . Combat | -11 -10 -10 -10 -9 -8 -7 -6 -6 -------- Run | Yrd Mat Min Exi Min Mat Fac Fac Ext Hostile Shots Fired 886 | 1 36 . . 17 97 395 99 241 Missed 333 | 1 13 . . 5 24 159 21 110 Damage Taken 4898 | . 182 . . 59 946 1430 1051 1230 Core 1576 | . 89 . . 21 423 182 120 741 Absorbed by Shields 88 | . . . . . . . . 88 Redirected to Shielding 101 | . . . . . . 101 . . Ignored by Resistances 2966 | . 115 . . 43 439 952 625 792 Regen/Repaired (Parts) 175 | . . . . . 36 139 . . Core Remaining (%) 63 | 100 . . . 56 23 74 . . Volleys Fired 299 | 4 34 . 1 10 60 100 61 29 Largest 2 | 2 2 . 2 2 2 2 2 2 Hottest 160 | 60 105 . 120 140 143 160 135 53 Shots Fired 516 | 8 47 . 2 20 100 187 120 32 Gun 381 | 8 45 . . 10 65 151 70 32 Cannon 110 | . . . 2 10 27 21 50 . Launcher 25 | . 2 . . . 8 15 . . Special . | . . . . . . . . . Kinetic 89 | 4 . . . . . 17 36 32 Thermal 311 | 4 45 . 2 20 73 110 57 . Explosive 25 | . 2 . . . 8 15 . . Electromagnetic 91 | . . . . . 19 45 27 . Robot Hit Streak 49 | 4 14 . . 26 39 34 49 8 Robot Miss Streak 3 | 1 1 . . 3 2 2 1 3 Penetration Max 2 | . . . . . . . 2 . Secondary Targets 1 | . . . . . . 1 . . Max Gunslinging Chain 1 | . . . . . . 1 . . Shots Hit Robots 424 | 5 38 . . 13 89 153 103 23 Core Hits 264 | 2 21 . . 8 73 109 40 11 Critical Kills 2 | . . . . . . . 1 1 Critical Parts Destroyed 2 | . . . . . . . 2 . Critical Strikes 7 | . . . . . 1 1 4 1 Destroy 4 | . . . . . . . 3 1 Corrupt 3 | . . . . . 1 1 1 . Melee Attacks 2 | . . . . . . 2 . . Impact . | . . . . . . . . . Slashing . | . . . . . . . . . Piercing . | . . . . . . . . . Sneak Attacks 2 | . . . . . . 2 . . Combat Hostiles . | . . . . . . . . . Follow-up Attacks . | . . . . . . . . . Damage Inflicted 11121 | 54 569 . . 283 2609 4605 2493 508 Guns 7162 | 54 452 . . 230 1566 3082 1270 508 Cannons 2024 | . . . . 53 394 365 1212 . Explosions 1919 | . 117 . . . 649 1153 . . Melee . | . . . . . . . . . Ramming 16 | . . . . . . 5 11 . Kinetic 1550 | 32 . . . . . 218 792 508 Thermal 6712 | 22 452 . . 283 1679 2946 1330 . Explosive 1572 | . 117 . . . 649 806 . . Electromagnetic 1271 | . . . . . 281 630 360 . Impact . | . . . . . . . . . Slashing . | . . . . . . . . . Piercing . | . . . . . . . . . Highest Corruption 4 | . . . . . . 1 4 4 Average Corruption 2 | . . . . . . 1 3 4 Corruption Purged 1 | . . . . . . 1 . . Corruption Blocked . | . . . . . . . . . Effects 47 | . . . . . . 5 32 10 Message Errors 14 | . . . . . . 3 10 1 Matter Fused 12 | . . . . . . 1 8 3 Heat Flow Errors 6 | . . . . . . . 4 2 Energy Discharges 7 | . . . . . . 1 3 3 Data Loss (minor) 3 | . . . . . . . 3 . Data Loss (major) 2 | . . . . . . . 1 1 Alerts 2 | . . . . . . . 2 . Weapon Failures 1 | . . . . . . . 1 . Overload Shots . | . . . . . . . . . Overflow Damage 233 | . . . . . 2 129 102 . Projectiles 114 | . . . . . . 12 102 . Explosions 119 | . . . . . 2 117 . . Melee . | . . . . . . . . . Knockbacks 1 | . . . . . . . 1 . Impact 1 | . . . . . . . 1 . Kinetic . | . . . . . . . . . Secondary . | . . . . . . . . . Self-Inflicted Damage 125 | . . . . . 92 33 . . Shots 6 | . . . . . 5 1 . . Rammed 3 | . . . . . . 1 2 . Targets Rammed 4 | . . . . . . 2 2 . Kicked 1 | . . . . . . 1 . . Crushed . | . . . . . . . . . Highest Temperature 578 | . 180 . 60 418 578 492 341 163 Average Temperature 125 | . 60 . 36 191 167 109 84 55 Received Heat Transfer 1867 | . 159 . . . 522 480 175 531 Effects 43 | . . . . 5 31 6 1 . Shutdowns 15 | . . . . 1 10 3 1 . Energy Bleed 8 | . . . . 1 7 . . . Interference 9 | . . . . 3 3 3 . . Short Circuit 3 | . . . . . 3 . . . Damage (minor) 2 | . . . . . 2 . . . Damage (major) 3 | . . . . . 3 . . . Damage (core) 3 | . . . . . 3 . . . Siege Activations . | . . . . . . . . . Robots Corrupted 1 | . . . . . . . 1 . Combat Hostiles 1 | . . . . . . . 1 . Parts Fried 6 | . . . . . 3 2 1 . Impact Corruptions . | . . . . . . . . . Robots Melted . | . . . . . . . . . Combat Hostiles . | . . . . . . . . . Parts Melted 27 | . 2 . . 2 8 14 1 . Heat Transferred 13228 | 50 1058 . . 636 3755 5925 1804 . Parts Sabotaged . | . . . . . . . . . Parts Stolen . | . . . . . . . . . Parts Stripped . | . . . . . . . . . Power Chain Reactions 1 | . . . . . . 1 . . Alert | -11 -10 -10 -10 -9 -8 -7 -6 -6 ------- Run | Yrd Mat Min Exi Min Mat Fac Fac Ext Peak Influence 409 | 20 206 5 . 90 407 409 117 295 Initial 67 | . 9 5 . . 19 67 21 41 Average 76 | 6 74 5 . 24 172 87 36 124 Maximum Alert Level 2 | . 1 . . . 2 2 . 1 Low Security (%) 88 | 100 94 100 . 100 53 86 100 84 Level 1 10 | . 5 . . . 44 12 . 15 Level 2 . | . . . . . 1 . . . Level 3 . | . . . . . . . . . Level 4 . | . . . . . . . . . Level 5 . | . . . . . . . . . High Security . | . . . . . . . . . Max Security . | . . . . . . . . . Squads Dispatched 38 | . 1 . . 1 5 15 10 6 Investigation 12 | . 1 . . 1 1 2 2 5 Extermination 9 | . . . . . . 6 3 . Reinforcement 12 | . . . . . 4 4 3 1 Assault . | . . . . . . . . . Garrison 5 | . . . . . . 3 2 . Intercept . | . . . . . . . . . Searches Triggered . | . . . . . . . . . Construction Impeded 1 | . . . . . 1 . . . Haulers Reinforced 1 | . . . . . . 1 . . Active Scanning Responses . | . . . . . . . . . Cargo Convoy Interrupts 1 | . . . . . . . 1 . Stealth | -11 -10 -10 -10 -9 -8 -7 -6 -6 --------- Run | Yrd Mat Min Exi Min Mat Fac Fac Ext Distress Signals 6 | . . . . . 1 . 3 2 Communications Jammed . | . . . . . . . . . Distress Signals . | . . . . . . . . . Times Spotted 160 | 1 12 . . 7 32 37 38 33 Peak Tracking Total 9 | 1 2 . . 4 4 4 6 9 Tactical Retreats 13 | . . . . . 3 1 3 6 Traps | -11 -10 -10 -10 -9 -8 -7 -6 -6 ------- Run | Yrd Mat Min Exi Min Mat Fac Fac Ext Traps Triggered 11 | . 4 . . . . . 3 4 Indirectly . | . . . . . . . . . Trap Hack Attempts . | . . . . . . . . . Triggered . | . . . . . . . . . Disarmed . | . . . . . . . . . Reprogrammed 2 | . . . . . . 2 . . Reused 2 | . . . . . . 2 . . Traps Extracted . | . . . . . . . . . Installed . | . . . . . . . . . Triggered 4 | . . . . 1 . 2 1 . Machines | -11 -10 -10 -10 -9 -8 -7 -6 -6 ---------- Run | Yrd Mat Min Exi Min Mat Fac Fac Ext Machines Disabled 25 | . . . . . 2 22 1 . Max in Single Turn 15 | . . . . . 2 15 1 . Garrison Access 1 | . . . . . . . 1 . Machines Repaired . | . . . . . . . . . Machines Dismantled . | . . . . . . . . . Machines Sabotaged . | . . . . . . . . . Overloaded Fab Kills . | . . . . . . . . . Hacking | -11 -10 -10 -10 -9 -8 -7 -6 -6 --------- Run | Yrd Mat Min Exi Min Mat Fac Fac Ext Machines Accessed 37 | . 3 . 4 1 3 9 8 9 Terminals 25 | . 2 . . . 2 8 4 9 Fabricators 3 | . . . . . . . 3 . Repair Stations 2 | . . . . . 1 1 . . Recycling Units 1 | . 1 . . . . . . . Scanalyzers . | . . . . . . . . . Garrison Access 1 | . . . . . . . 1 . Total Hacks 141 | . 5 . 49 1 9 22 29 26 Successful 117 | . 2 . 49 1 7 17 23 18 Failed 24 | . 3 . . . 2 5 6 8 Catastrophic 3 | . 1 . . . . . 1 1 Database Lockouts . | . . . . . . . . . Manual 37 | . 6 . 12 . 2 4 3 10 Terminals 57 | . 4 . . . 5 16 6 26 Fabricators 19 | . . . . . . . 19 . Repair Stations 10 | . . . . . 4 6 . . Recycling Units 1 | . 1 . . . . . . . Scanalyzers . | . . . . . . . . . Garrison Access 4 | . . . . . . . 4 . Terminal Hacks 87 | . 1 . 49 1 3 11 4 18 Record 59 | . 1 . 49 . 1 1 1 6 Part Schematic 4 | . . . . . . 1 . 3 Robot Schematic 3 | . . . . . . 2 1 . Open Door 6 | . . . . 1 . . 1 4 Open DSF 5 | . . . . . . 4 1 . Emergency Access Points 1 | . . . . . 1 . . . Terminal Index 1 | . . . . . . 1 . . Alert Level 1 | . . . . . . . . 1 Reprogram Traps 1 | . . . . . . 1 . . Dispatch Records 1 | . . . . . . 1 . . Recall Extermination 1 | . . . . . . . . 1 Recall Assault 1 | . . . . . 1 . . . Hauler Manifests 1 | . . . . . . . . 1 Registered Prototypes 1 | . . . . . . . . 1 Zone Layout 1 | . . . . . . . . 1 Fabricator Hacks 17 | . . . . . . . 17 . Load Schematic 9 | . . . . . . . 9 . Build 8 | . . . . . . . 8 . Repair Station Hacks 10 | . . . . . 4 6 . . Scan Component 5 | . . . . . 2 3 . . Repair 5 | . . . . . 2 3 . . Recycling Unit Hacks 1 | . 1 . . . . . . . Retrieve Components 1 | . 1 . . . . . . . Scanalyzer . | . . . . . . . . . Garrison Access Hacks 2 | . . . . . . . 2 . Seal Access 1 | . . . . . . . 1 . Coupler Status 1 | . . . . . . . 1 . Unauthorized Hacks . | . . . . . . . . . Terminals . | . . . . . . . . . Fabricators . | . . . . . . . . . Repair Stations . | . . . . . . . . . Recycling Units . | . . . . . . . . . Scanalyzers . | . . . . . . . . . Garrison Access . | . . . . . . . . . Data Cores Recovered 1 | . . . . . . . . 1 Used 1 | . . . . . . . . 1 Hacking Detections 17 | . 1 . . . 2 5 3 6 Full Trace Events 11 | . 1 . . . 1 2 2 5 Feedback Events 1 | . . . . . . . . 1 Hackware Fried 1 | . . . . . . . . 1 Feedback Blocked . | . . . . . . . . . Robot Schematics Acquired 3 | . . . . . . 2 1 . Robots Built 26 | . . . . . . . 26 . Authchips . | . . . . . . . . . Time 938 | . . . . . . . 938 . Total Robot Build Rating 104 | . . . . . . . 104 . Part Schematics Acquired 4 | . . . . . . 1 . 3 Parts Built . | . . . . . . . . . Authchips . | . . . . . . . . . Time . | . . . . . . . . . Total Part Build Rating . | . . . . . . . . . Parts Repaired 5 | . . . . . 2 3 . . Time 160 | . . . . . 52 108 . . Parts Recycled . | . . . . . . . . . Recycled Matter . | . . . . . . . . . Retrieved Matter . | . . . . . . . . . Retrieved Components 1 | . 1 . . . . . . . Parts Scanalyzed . | . . . . . . . . . Part Schematics Acquired . | . . . . . . . . . Parts Damaged . | . . . . . . . . . Bothacking | -11 -10 -10 -10 -9 -8 -7 -6 -6 ------------ Run | Yrd Mat Min Exi Min Mat Fac Fac Ext Used RIF Installer . | . . . . . . . . . Robots Hacked 1 | . . . . . . 1 . . Non-combat 1 | . . . . . . 1 . . Combat . | . . . . . . . . . Robot Hacks Applied 2 | . . . . . . 2 . . find_fabricator 1 | . . . . . . 1 . . find_dsf 1 | . . . . . . 1 . . Relay Couplers Released . | . . . . . . . . . Fabnet Peak Effective % . | . . . . . . . . . Robots Rewired . | . . . . . . . . . Allies Hacked . | . . . . . . . . . Hacks Repelled . | . . . . . . . . . Allies | -11 -10 -10 -10 -9 -8 -7 -6 -6 -------- Run | Yrd Mat Min Exi Min Mat Fac Fac Ext Total Allies 35 | . . . . 2 . . 26 7 Largest Group 16 | . . . . 2 . . 16 7 Highest-Rated Group 192 | . . . . 47 . . 192 111 Highest-Rated Ally 31 | . . . . 31 . . 20 31 Total Orders . | . . . . . . . . . Ally Attacks 220 | . . . . 6 . . 137 77 Total Damage 3267 | . . . . 81 . . 1993 1193 Kills 22 | . . . . 2 . . 15 5 Allies Corrupted . | . . . . . . . . . Allies Melted 1 | . . . . . . . 1 . Intel | -11 -10 -10 -10 -9 -8 -7 -6 -6 ------- Run | Yrd Mat Min Exi Min Mat Fac Fac Ext Robot Analysis Total . | . . . . . . . . . Derelict Logs Recovered 1 | . . . . 1 . . . . Drone Launches . | . . . . . . . . . Drone Recoveries . | . . . . . . . . . Exploration | -11 -10 -10 -10 -9 -8 -7 -6 -6 ------------- Run | Yrd Mat Min Exi Min Mat Fac Fac Ext Turns Passed 9302 | 78 946 89 856 665 1028 2559 2574 507 Spaces Moved 6237 | 64 405 111 888 656 756 1460 1033 864 Core 126 | 17 67 . . . . 1 . 41 Treads 1507 | . 241 . . . . 390 876 . Legs 1350 | . . . . . 278 1069 . 3 Wheels 2277 | 47 97 111 888 656 478 . . . Hover . | . . . . . . . . . Flight 977 | . . . . . . . 157 820 Fastest Speed 27 | 50 80 80 80 90 86 90 27 27 Average Speed 108 | 72 197 80 94 91 90 129 145 32 Slowest Speed 700 | 80 500 80 95 95 360 700 170 120 Overloaded Moves . | . . . . . . . . . Propulsion Burnouts . | . . . . . . . . . Robots Hopped 4 | . . . . . . . . 4 Cave-ins Triggered . | . . . . . . . . . Exploration Rate (%) 55 | 6 70 28 93 97 67 34 34 70 Regions Visited 8 Branch Regions 4 Pre-discovered Areas 1 | . . . 1 . . . . . Known Exits Taken 8 | 1 1 1 1 1 1 1 1 . Unknown Exits Taken . | . . . . . . . . . Scrap Searched 1 | . . . . 1 . . . . Spaces Dug . | . . . . . . . . . Terrain Destroyed 163 | . 3 . . . 76 83 1 . Melee . | . . . . . . . . . Projectile 1 | . . . . . . . 1 . AOE 162 | . 3 . . . 76 83 . . Terrain Rammed . | . . . . . . . . . Walls Destroyed . | . . . . . . . . . Machines Disabled . | . . . . . . . . . Actions | -11 -10 -10 -10 -9 -8 -7 -6 -6 --------- Run | Yrd Mat Min Exi Min Mat Fac Fac Ext Total 8283 | 88 506 110 902 702 992 1932 1989 1062 Wait 1295 | 1 . . 1 11 103 264 831 84 Move 6221 | 63 404 110 887 655 755 1459 1032 856 Hop 4 | . . . . . . . . 4 Pick Up 159 | 11 35 . 5 11 32 37 19 9 Fast Attach . | . . . . . . . . . Attach 74 | 8 10 . . 3 13 16 15 9 Detach 11 | 1 . . . . . 1 5 4 Swap 49 | . 8 . 3 . 9 24 4 1 Drop 109 | . 15 . 5 12 20 27 20 10 Fire 299 | 4 34 . 1 10 60 100 61 29 Melee 2 | . . . . . . 2 . . Ram . | . . . . . . . . . Kick 1 | . . . . . . 1 . . Crush 3 | . . . . . . 1 2 . Escape Stasis 56 | . . . . . . . . 56 Rewire . | . . . . . . . . . Trap . | . . . . . . . . . Miscellaneous . | . . . . . . . . . Route ------- -11/Scrapyard -10/Materials (discovered 3 exits: *Mat x2 / *Min) -10/Mines (discovered 2 exits: *Mat / *Exi) -10/Exiles -9/Mines (discovered 2 exits: *Mat x2) -8/Materials (discovered 2 exits: *Fac x2) -7/Factory -6/Factory (discovered 2 exits: *Fac / *Ext) -6/Extension History --------- Turn | Location | Event 2 | -11/Scrapyard | Met Revision 17 50 | -11/Scrapyard | Identified exit to Materials 50 | -11/Scrapyard | Discovered exit to Materials (range 8) 79 | -11/Scrapyard | Entered Materials 79 | -10/Materials | Evolved 1 slot: Propulsion x1 274 | -10/Materials | Identified exit to Materials 274 | -10/Materials | Discovered exit to Materials (range 16) 322 | -10/Materials | Build established: Hacker-Mutant 563 | -10/Materials | Identified exit to Mines 563 | -10/Materials | Discovered exit to Mines (range 12) 625 | -10/Materials | Discovered exit to Materials (range 16) 1025 | -10/Materials | Entered Mines 1025 | -10/Mines | Discovered exit to Materials (range 9) 1110 | -10/Mines | Deemed a non-threat by the Exiles lab entrance 1110 | -10/Mines | Identified exit to Exiles 1110 | -10/Mines | Discovered exit to Exiles (range 5) 1114 | -10/Mines | Entered Exiles 1147 | -10/Exiles | Met 8R-AWN 1166 | -10/Exiles | Met EX-HEX 1201 | -10/Exiles | Met EX-DEC 1251 | -10/Exiles | Learned location of Zion (-7) 1304 | -10/Exiles | Identified exit to Mines 1304 | -10/Exiles | Discovered exit to Mines (range 10) 1393 | -10/Exiles | Visited The Gauntlet 1589 | -10/Exiles | Met EX-BIN 1671 | -10/Exiles | Aligned with FarCom system 1672 | -10/Exiles | Given EX-Vault access code 1875 | -10/Exiles | Opened EX-Vault 1881 | -10/Exiles | Found Prototype Processor 1902 | -10/Exiles | Warned to stay clear of 0b10 Research branches 1970 | -10/Exiles | Left Exiles lab with Modified TNC 1970 | -10/Exiles | Entered Mines 2090 | -9/Mines | Learned Materials garrison access intel 2184 | -9/Mines | Met a Derelict shopkeep closing up shop 2271 | -9/Mines | Lost 3 allies 2280 | -9/Mines | Identified exit to Materials 2280 | -9/Mines | Discovered exit to Materials (range 12) 2373 | -9/Mines | Discovered exit to Materials (range 9) 2635 | -9/Mines | Entered Materials 2635 | -8/Materials | Evolved 4 slots: Power x1, Propulsion x1, Utility x2 2635 | -8/Materials | Identified Modified TNC 2636 | -8/Materials | Loaded intel: 1 garrison access location 2844 | -8/Materials | Repaired Wheel 2874 | -8/Materials | Repaired Wheel 3108 | -8/Materials | Identified exit to Factory 3108 | -8/Materials | Discovered exit to Factory (range 16) 3266 | -8/Materials | Core integrity fell below 50% 3646 | -8/Materials | Discovered exit to Factory (range 15) 3663 | -8/Materials | Entered Factory 3663 | -7/Factory | Evolved 2 slots: Utility x2 3828 | -7/Factory | Identified exit to Factory 3828 | -7/Factory | Discovered exit to Factory (range 14) 3955 | -7/Factory | Build established: Hacker-Skirmisher 4404 | -7/Factory | Build established: Hacker-Mutant 4547 | -7/Factory | Repaired Gatling Laser 4617 | -7/Factory | Repaired ECM Suite 4689 | -7/Factory | Repaired VSS Leg 6222 | -7/Factory | Entered another Factory area 6222 | -6/Factory | Evolved 2 slots: Power x1, Utility x1 6748 | -6/Factory | Fabricated B-48 Gladiator (x3) 6817 | -6/Factory | Fabricated B-48 Gladiator (x3) 6893 | -6/Factory | Identified exit to Factory 6893 | -6/Factory | Discovered exit to Factory (range 6) 6901 | -6/Factory | Lost 6 allies 7529 | -6/Factory | Assembled infested ambush trap array 7590 | -6/Factory | Lost 3 parts (1p2u) 7885 | -6/Factory | Build established: Hacker-Skirmisher 8017 | -6/Factory | Fabricated S-27 Virus (x4) 8122 | -6/Factory | Lost 4 allies 8156 | -6/Factory | Fabricated S-27 Virus (x4) 8296 | -6/Factory | Cargo convoy interrupted 8299 | -6/Factory | Fabricated S-27 Virus (x4) 8443 | -6/Factory | Fabricated S-27 Virus (x4) 8585 | -6/Factory | Fabricated S-27 Virus (x4) 8672 | -6/Factory | Garrison activated, responded to threat 8725 | -6/Factory | Lost 11 allies 8790 | -6/Factory | Identified exit to Extension 8790 | -6/Factory | Discovered exit to Extension (range 6) 8796 | -6/Factory | Entered Extension 8796 | -6/Extension | Accompanied by 5 allies 8847 | -6/Extension | Rescued a captive Derelict 8848 | -6/Extension | Rescued a captive Derelict 8900 | -6/Extension | Spotted B-75 Beast 8940 | -6/Extension | Lost 4 allies 9045 | -6/Extension | Build established: Hacker-Sprinter 9132 | -6/Extension | Lost 5 parts (1p3n1u) 9166 | -6/Extension | Spotted B-75 Beast 9190 | -6/Extension | Rescued a captive Derelict 9200 | -6/Extension | Hacking Suite fried by hacking feedback 9209 | -6/Extension | Rescued a captive Derelict 9209 | -6/Extension | Rescued a captive Derelict 9215 | -6/Extension | Rescued a captive Derelict 9217 | -6/Extension | Rescued a captive Derelict 9261 | -6/Extension | Core integrity fell below 50% 9286 | -6/Extension | Lost 3 allies 9298 | -6/Extension | Core integrity fell below 20% 9303 | -6/Extension | Destroyed by G-50 Soldier with Heavy Laser Last Messages --------------- Field strength at 90. Penetrated by Slug. Imp. VTOL Module destroyed. Penetrated by Slug. H-66 Slayer heat short circuits Targeting Computer. Field strength at 74. H-66 Slayer heat damages core (-12). Field strength at 65. Field strength at 53. Field strength at 44. Field strength at 30. Field strength at 15. Stasis field depleted. Dropped Adv. ECM Suite. Acquired Carbon-fiber Leg. Acquired Lgt. Angular Momentum Engine. Dropped Carbon-fiber Leg. UTV8N:&E R>FUD9/W,JG1X System corrupted: Energy discharge (-25). Map ----- +----------------------------------------------------+ | | | | | | | | | | | | | | | | | | | | | | | | | | | | | | | | | | | | | | | ?????????????????????????????????????????????????? | | ?????????????????????????????????????????????????? | | ?????????????????????????????????????????????????? | | ??#########??????????????????????????????????????? | | ??# ##############################?????????? | | ### ^ +?????????? | | @ #??????????????? | | gg g #??????????????? | | g %!% *[% #??????????????? | | ### g g Y g!g /%=%! #??????????????? | | ??# ####################### #??????????????? | | ??#### ####???????????????????????#??????????????? | | ????# T#???????????????????????????????????????? | | ????## ##???????????????????????????????????????? | | ?????# #????????????????????????????????????????? | | ?????####????????????????????????????????????????? | | ?????????????????????????????????????????????????? | | ?????????????????????????????????????????????????? | | ?????????????????????????????????????????????????? | | ?????????????????????????????????????????????????? | | ?????????????????????????????????????????????????? | | ?????????????????????????????????????????????????? | | ?????????????????????????????????????????????????? | | ?????????????????????????????????????????????????? | | ?????????????????????????????????????????????????? | | ?????????????????????????????????????????????????? | | ?????????????????????????????????????????????????? | | ?????????????????????????????????????????????????? | | ?????????????????????????????????????????????????? | | ?????????????????????????????????????????????????? | | ?????????????????????????????????????????????????? | +----------------------------------------------------+ Best States ------------- Heat Dissipation 70 Energy Generation 37 Energy Capacity 515 Matter Stores 300 Matter Capacity 300 Sight Range 16 Robot Scan Range 15 Terrain Scan Density 10 ECM Strength 2 Additional Mass Support 6 Armor Coverage 150 Resistance: KI 35 Resistance: TH 35 Resistance: EX 35 Resistance: EM 35 Resistance: I 35 Resistance: S 35 Resistance: P 35 Propulsion Shielding 66 Evasion (%) 64 Targeting Accuracy 5 Recoil Reduction 4 Energy Filtering 30 Offensive Hacking 52 Item Schematics ----------------- Matter Filter | -7/Factory | Hacked VTOL Module | -6/Extension | Hacked Nuclear Pulse Thruster | -6/Extension | Hacked Heat Sink | -6/Extension | Hacked Robot Schematics ------------------ B-48 Gladiator | -7/Factory | Hacked T-07 Excavator | -7/Factory | Hacked S-27 Virus | -6/Factory | Hacked Fabricated ------------ B-48 Gladiator | x3 | -6/Factory B-48 Gladiator | x3 | -6/Factory S-27 Virus | x4 | -6/Factory S-27 Virus | x4 | -6/Factory S-27 Virus | x4 | -6/Factory S-27 Virus | x4 | -6/Factory S-27 Virus | x4 | -6/Factory Alien Tech Used ----------------- None Achievements -------------- Dynamic Key Hey, That's Mine! It Was An Accident, I Swear My Command Is Your Wish Oops Party Time The More The Merrier Tourist War Machine root@ Challenges ------------ None Game ------ Seed PropulsionSwarmDeconstructor Manual? 0 Play Time 02:26:24 Cumulative 9.2 hours Start 2024.04.01 @ 21:19:39 End 2024.04.02 @ 21:51:18 Sessions 7 Manual Loads 0 Difficulty Explorer Special Mode None Game No. 3 Rogue 0 Adventurer 0 Explorer 3 Win Type - Total 0 Types 0/0/0/0/0/0/0/0/0 Lore% 13 Gallery% 16 Achievement% 13 Wizard Run 0 Options --------- Layout 1 ASCII 0 Keyboard 0 Movement Mouse Keybinds 0 Fullscreen 1 Font 48/Smallcaps Map View 50x35 Zoom Use 0% Tactical HUD 0 Map Filters NONE Filters NONE Steam 1 RUN: a67cc547-0cfd-46bf-bc3f-f502e3c9e394